fUST/lending_fUST_20250605
["ID","MTS","AMOUNT","RATE_DAILY","PERIOD"]
[364295847,1749060651910,-151.0,0.000234,7]
[364295849,1749060651919,-151.0,0.000234,7]
[364295851,1749060651928,-151.0,0.000234,7]
[364295853,1749060651938,-270.630112,0.000234,7]
[364295855,1749060651947,-151.0,0.000234,7]
[364295857,1749060651956,-151.0,0.000234,7]
[364295859,1749060651966,-546.080657,0.000234,7]
[364295861,1749060651975,-546.080657,0.000234,7]
[364295863,1749060651985,-600.0,0.00023492,2]
[364295865,1749060651994,-2000.0,0.000235,2]
[364295867,1749060652004,-2816.83204157,0.000235,2]
[364295870,1749060652015,-182.17196922,0.00023507,2]
[364295872,1749060652024,-956.162843,0.0002352,3]
[364295874,1749060652033,-1000.0,0.00023521,2]
[364295875,1749060652043,-1000.0,0.00023521,2]
[364295877,1749060652053,-1000.0,0.00023521,2]
[364295879,1749060652062,-2996.06106417,0.00023521,9]
[364295882,1749060652072,-440.0,0.00023525,2]
[364295884,1749060652082,-603.18,0.00023525,2]
[364295886,1749060652091,-230.44,0.00023525,2]
[364295888,1749060652101,-858.28,0.00023525,2]
[364295890,1749060652111,-440.0,0.00023525,2]
[364295892,1749060652120,-440.0,0.00023525,2]
[364295894,1749060652129,-440.0,0.00023536,2]
[364295896,1749060652139,-440.0,0.00023536,2]
[364295898,1749060652148,-380.0,0.00023536,2]
[364295900,1749060652157,-440.0,0.00023536,2]
[364295902,1749060652167,-720.9,0.00023536,2]
[364295904,1749060652177,-440.0,0.00023536,2]
[364295905,1749060652187,-440.0,0.00023536,2]
[364295908,1749060652198,-380.0,0.00023536,2]
[364295910,1749060652208,-440.0,0.00023536,2]
[364295912,1749060652217,-440.0,0.00023536,2]
[364295914,1749060652226,-440.0,0.00023536,2]
[364295916,1749060652237,-753.61,0.00023536,2]
[364295918,1749060652247,-440.0,0.00023536,2]
[364295920,1749060652257,-500.0,0.00023561,2]
[364295922,1749060652268,-1500.0,0.00023568,2]
[364295923,1749060652277,-1500.0,0.00023568,2]
[364295925,1749060652287,-330.0,0.00023581,2]
[364295927,1749060652296,-802.75,0.00023582,2]
[364295929,1749060652305,-733.96,0.00023582,2]
[364295931,1749060652314,-440.0,0.00023582,2]
[364295933,1749060652323,-1948.38,0.00023582,2]
[364295935,1749060652332,-440.0,0.00023582,2]
[364295937,1749060652341,-440.0,0.00023582,2]
[364295939,1749060652350,-440.0,0.00023582,2]
[364295941,1749060652358,-440.0,0.00023582,2]
[364295943,1749060652367,-440.0,0.00023582,2]
[364295945,1749060652376,-475.57,0.00023582,2]
[364295947,1749060652385,-624.88,0.00023582,2]
[364295949,1749060652394,-330.0,0.00023582,2]
[364295951,1749060652403,-440.0,0.00023582,2]
[364295953,1749060652413,-440.0,0.00023582,2]
[364295955,1749060652422,-518.34,0.00023582,2]
[364295957,1749060652431,-565.05,0.00023583,2]
[364295959,1749060652440,-330.0,0.00023583,2]
[364295961,1749060652450,-440.0,0.00023583,2]
[364295963,1749060652459,-330.0,0.00023583,2]
[364295965,1749060652468,-440.0,0.00023583,2]
[364295967,1749060652478,-440.0,0.00023583,2]
[364295969,1749060652488,-440.0,0.00023583,2]
[364295971,1749060652497,-440.0,0.00023583,2]
[364295973,1749060652509,-440.0,0.00023583,2]
[364295975,1749060652518,-440.0,0.00023583,2]
[364295976,1749060652527,-440.0,0.00023583,2]
[364295979,1749060652537,-318.37,0.00023584,2]
[364295981,1749060652547,-247.364,0.00023588,2]
[364295983,1749060652556,-235.529,0.00023588,2]
[364295985,1749060652566,-152.115,0.00023588,2]
[364295987,1749060652575,-250.0,0.00023588,2]
[364295989,1749060652585,-216.455,0.00023588,2]
[364295991,1749060652595,-962.0,0.00023588,2]
[364295993,1749060652605,-709.0,0.00023588,2]
[364295995,1749060652614,-2229.0,0.00023588,2]
[364295997,1749060652624,-495.838,0.00023588,2]
[364295999,1749060652633,-182.17196922,0.00023616,2]
[364296001,1749060652642,-19186.22,0.00023635,9]
[364296003,1749060652653,-9941.15,0.00023635,9]
[364296004,1749060652663,-2996.06106417,0.00023659,9]
[364296007,1749060652673,-215.0738,0.00023666,2]
[364296008,1749060652683,-206.71,0.00023668,4]
[364296010,1749060652692,-226.94,0.00023668,4]
[364296012,1749060652701,-275.09,0.00023668,4]
[364296014,1749060652711,-2200.0,0.00023669,2]
[364296016,1749060652721,-564.95,0.000237,14]
[364296018,1749060652730,-182.17196922,0.00023753,2]
[364296021,1749060652739,-200.0,0.0002376,8]
[364296022,1749060652750,-167084.79361399,0.00023768,2]
[364296025,1749060652762,-151.0,0.00023768,7]
[364296027,1749060652772,-151.0,0.00023768,7]
[364296029,1749060652782,-151.0,0.00023768,7]
[364296030,1749060652791,-151.0,0.00023768,7]
[364296032,1749060652800,-151.0,0.00023768,7]
[364296034,1749060652810,-262.180723,0.00023768,2]
[364296036,1749060652819,-262.180723,0.00023768,2]
[364296038,1749060652829,-151.0,0.00023768,7]
[364296040,1749060652839,-158.720593,0.00023768,7]
[364296042,1749060652848,-152.650201,0.00023768,7]
[364296044,1749060652857,-151.0,0.00023768,7]
[364296046,1749060652867,-151.0,0.00023768,7]
[364296048,1749060652876,-151.0,0.00023768,7]
[364296050,1749060652885,-151.0,0.00023768,7]
[364296052,1749060652895,-151.0,0.00023768,7]
[364296054,1749060652904,-151.0,0.00023768,7]
[364296056,1749060652913,-151.0,0.00023768,7]
[364296058,1749060652923,-186.815414,0.00023768,7]
[364296060,1749060652933,-186.815414,0.00023768,7]
[364296062,1749060652942,-151.0,0.00023768,7]
[364296064,1749060652952,-151.0,0.00023768,7]
[364296066,1749060652962,-151.0,0.00023768,7]
[364296068,1749060652971,-151.0,0.00023768,7]
[364296070,1749060652981,-151.0,0.00023768,7]
[364296073,1749060652991,-151.0,0.00023768,7]
[364296075,1749060653000,-151.0,0.00023768,7]
[364296077,1749060653010,-546.080657,0.00023768,7]
[364296078,1749060653020,-546.080657,0.00023768,7]
[364296081,1749060653030,-151.0,0.00023768,7]
[364296083,1749060653040,-151.0,0.00023768,7]
[364296085,1749060653049,-151.0,0.00023768,7]
[364296087,1749060653058,-218.720102,0.00023768,7]
[364296089,1749060653068,-201.332901,0.00023768,7]
[364296090,1749060653077,-201.332901,0.00023768,7]
[364296092,1749060653086,-151.0,0.00023768,7]
[364296094,1749060653095,-253.337168,0.00023768,7]
[364296096,1749060653105,-399.812673,0.00023768,2]
[364296098,1749060653115,-399.812673,0.00023768,2]
[364296100,1749060653123,-2996.06106417,0.00023797,9]
[364296113,1749060653234,-440.0,0.00023799,2]
[364296115,1749060653244,-603.18,0.00023799,2]
[364296117,1749060653253,-858.28,0.00023799,2]
[364296119,1749060653263,-440.0,0.00023799,2]
[364296121,1749060653273,-440.0,0.00023799,2]
[364296123,1749060653282,-36622.46934136,0.000238,3]
[364296125,1749060653292,-842.5625,0.000238,3]
[364296127,1749060653302,-160.0,0.000238,3]
[364296129,1749060653311,-440.0,0.0002381,2]
[364296131,1749060653320,-440.0,0.0002381,2]
[364296133,1749060653329,-440.0,0.0002381,2]
[364296135,1749060653338,-720.9,0.0002381,2]
[364296137,1749060653348,-440.0,0.0002381,2]
[364296139,1749060653357,-440.0,0.0002381,2]
[364296141,1749060653366,-440.0,0.0002381,2]
[364296142,1749060653375,-440.0,0.0002381,2]
[364296144,1749060653385,-440.0,0.0002381,2]
[364296146,1749060653394,-753.61,0.0002381,2]
[364296148,1749060653403,-440.0,0.0002381,2]
[364296150,1749060653412,-802.75,0.00023856,2]
[364296152,1749060653422,-733.96,0.00023856,2]
[364296154,1749060653431,-440.0,0.00023856,2]
[364296156,1749060653440,-1948.38,0.00023856,2]
[364296158,1749060653449,-320.0,0.00023856,2]
[364296160,1749060653458,-320.0,0.00023856,2]
[364296162,1749060653468,-320.0,0.00023856,2]
[364296164,1749060653477,-440.0,0.00023856,2]
[364296166,1749060653486,-320.0,0.00023856,2]
[364296168,1749060653496,-475.57,0.00023856,2]
[364296170,1749060653507,-624.88,0.00023856,2]
[364296172,1749060653516,-440.0,0.00023856,2]
[364296174,1749060653525,-440.0,0.00023856,2]
[364296176,1749060653534,-518.34,0.00023856,2]
[364296178,1749060653543,-565.05,0.00023857,2]
[364296180,1749060653552,-440.0,0.00023857,2]
[364296182,1749060653562,-440.0,0.00023857,2]
[364296184,1749060653571,-440.0,0.00023857,2]
[364296186,1749060653581,-440.0,0.00023857,2]
[364296188,1749060653591,-442.07176566,0.00023857,2]
[364296190,1749060653600,-320.0,0.00023857,2]
[364296193,1749060653610,-440.0,0.00023857,2]
[364296195,1749060653619,-440.0,0.00023857,2]
[364296197,1749060653629,-318.37,0.00023858,2]
[364296199,1749060653638,-182.17196922,0.00023863,2]
[364296201,1749060653647,-2500.0,0.00023864,2]
[364296203,1749060653657,-491.71526404,0.00023864,2]
[364296205,1749060653668,-1000.0,0.00023864,2]
[364296207,1749060653677,-3000.0,0.00023864,2]
[364296209,1749060653687,-752.24,0.00023888,5]
[364296211,1749060653696,-371.12913202,0.000239,2]
[364296213,1749060653706,-2996.06106417,0.00023934,10]
[364296215,1749060653715,-5000.0,0.00023941,2]
[364296217,1749060653725,-182.17196922,0.00023973,2]
[364296219,1749060653734,-8432.33669,0.00024,30]
[364296221,1749060653743,-2741.13,0.00024,2]
[364296223,1749060653753,-151.0,0.00024,7]
[364296225,1749060653766,-151.0,0.00024,7]
[364296227,1749060653775,-151.0,0.00024,7]
[364296229,1749060653785,-262.180723,0.00024,2]
[364296231,1749060653795,-262.180723,0.00024,2]
[364296233,1749060653804,-151.0,0.00024,7]
[364296235,1749060653814,-151.0,0.00024,7]
[364296237,1749060653823,-151.0,0.00024,7]
[364296239,1749060653833,-151.0,0.00024,10]
[364296241,1749060653842,-151.0,0.00024,7]
[364296243,1749060653851,-151.0,0.00024,7]
[364296245,1749060653860,-151.0,0.00024,7]
[364296247,1749060653872,-151.0,0.00024,7]
[364296249,1749060653881,-186.815414,0.00024,7]
[364296251,1749060653891,-186.815414,0.00024,7]
[364296253,1749060653901,-151.0,0.00024,7]
[364296255,1749060653910,-500.0,0.00024,2]
[364296257,1749060653919,-500.0,0.00024,2]
[364296260,1749060653929,-500.0,0.00024,2]
[364296262,1749060653939,-151.0,0.00024,7]
[364296264,1749060653949,-151.0,0.00024,7]
[364296266,1749060653958,-151.0,0.00024,7]
[364296268,1749060653967,-151.0,0.00024,7]
[364296270,1749060653976,-151.0,0.00024,7]
[364296272,1749060653985,-500.0,0.00024,2]
[364296274,1749060653994,-500.0,0.00024,2]
[364296276,1749060654004,-1108.40063317,0.00024006,2]
[364296278,1749060654013,-1108.40063312,0.00024013,2]
[364296280,1749060654022,-1108.40063312,0.00024019,2]
[364296282,1749060654032,-1108.40063312,0.00024026,2]
[364296284,1749060654041,-399.812673,0.00024026,2]
[364296286,1749060654050,-399.812673,0.00024026,2]
[364296288,1749060654059,-1108.40063312,0.00024033,2]
[364296290,1749060654069,-1108.40063312,0.00024039,2]
[364296292,1749060654078,-1108.40063312,0.00024046,2]
[364296294,1749060654087,-1108.40063312,0.00024053,2]
[364296296,1749060654098,-1108.40063312,0.00024059,2]
[364296297,1749060654107,-212.84934691,0.0002406,2]
[364296299,1749060654117,-1108.40063312,0.00024066,2]
[364296301,1749060654126,-151.0,0.00024068,7]
[364296303,1749060654136,-151.0,0.00024068,7]
[364296305,1749060654145,-151.0,0.00024068,7]
[364296307,1749060654154,-151.0,0.00024068,7]
[364296309,1749060654164,-500.0,0.00024068,2]
[364296311,1749060654174,-1623.70667292,0.00024068,2]
[364296313,1749060654184,-1016.1556834,0.00024068,2]
[364296315,1749060654196,-151.0,0.00024072,7]
[364296317,1749060654205,-546.080657,0.00024072,7]
[364296319,1749060654215,-546.080657,0.00024072,7]
[364296321,1749060654226,-201.332901,0.00024072,7]
[364296323,1749060654236,-201.332901,0.00024072,7]
[364296325,1749060654245,-2996.06106417,0.00024072,10]
[364296327,1749060654256,-440.0,0.00024073,2]
[364296330,1749060654267,-603.18,0.00024073,2]
[364296332,1749060654277,-858.28,0.00024073,2]
[364296334,1749060654286,-440.0,0.00024073,2]
[364296336,1749060654295,-440.0,0.00024073,2]
[364296338,1749060654305,-182.17196922,0.00024082,2]
[364296340,1749060654314,-440.0,0.00024084,2]
[364296342,1749060654323,-440.0,0.00024084,2]
[364296344,1749060654333,-440.0,0.00024084,2]
[364296346,1749060654342,-720.9,0.00024084,2]
[364296348,1749060654352,-440.0,0.00024084,2]
[364296350,1749060654361,-440.0,0.00024084,2]
[364296352,1749060654370,-440.0,0.00024084,2]
[364296354,1749060654380,-440.0,0.00024084,2]
[364296356,1749060654390,-440.0,0.00024084,2]
[364296358,1749060654400,-753.61,0.00024084,2]
[364296360,1749060654409,-440.0,0.00024084,2]
[364296362,1749060654418,-752.24,0.00024088,2]
[364296364,1749060654427,-2000.0,0.000241,2]
[364296366,1749060654436,-2000.0,0.000241,2]
[364296368,1749060654445,-3724.32592862,0.000241,2]
[364296370,1749060654455,-3705.20791374,0.000241,5]
[364296372,1749060654466,-151.0,0.000241,10]
[364296374,1749060654475,-155463.77453562,0.00024106,2]
[364296376,1749060654484,-151.0,0.00024106,7]
[364296378,1749060654493,-151.0,0.00024106,7]
[364296380,1749060654502,-151.0,0.00024106,7]
[364296381,1749060654512,-151.0,0.00024106,7]
[364296383,1749060654521,-151.0,0.00024106,7]
[364296385,1749060654530,-151.0,0.00024106,7]
[364296387,1749060654540,-210.29862687,0.00024106,7]
[364296389,1749060654550,-262.180723,0.00024106,2]
[364296391,1749060654559,-262.180723,0.00024106,2]
[364296393,1749060654569,-151.0,0.00024106,7]
[364296395,1749060654578,-151.0,0.00024106,7]
[364296397,1749060654588,-151.0,0.00024106,7]
[364296399,1749060654597,-151.0,0.00024106,7]
[364296401,1749060654607,-151.0,0.00024106,7]
[364296403,1749060654616,-151.0,0.00024106,7]
[364296405,1749060654626,-151.0,0.00024106,7]
[364296407,1749060654635,-186.815414,0.00024106,7]
[364296410,1749060654645,-186.815414,0.00024106,7]
[364296411,1749060654655,-151.0,0.00024106,7]
[364296414,1749060654664,-151.0,0.00024106,7]
[364296416,1749060654674,-151.0,0.00024106,7]
[364296418,1749060654684,-151.0,0.00024106,7]
[364296420,1749060654694,-151.0,0.00024106,7]
[364296421,1749060654703,-151.0,0.00024106,7]
[364296423,1749060654713,-546.080657,0.00024106,7]
[364296425,1749060654721,-546.080657,0.00024106,7]
[364296427,1749060654731,-151.0,0.00024106,7]
[364296429,1749060654740,-151.0,0.00024106,7]
[364296431,1749060654751,-151.0,0.00024106,7]
[364296433,1749060654761,-201.332901,0.00024106,7]
[364296435,1749060654770,-201.332901,0.00024106,7]
[364296437,1749060654780,-151.0,0.00024106,7]
[364296439,1749060654789,-399.812673,0.00024106,2]
[364296441,1749060654798,-399.812673,0.00024106,2]
[364296443,1749060654807,-500.0,0.00024109,2]
[364296445,1749060654816,-446.64,0.00024109,2]
[364296447,1749060654826,-446.64,0.00024109,2]
[364296449,1749060654835,-446.64,0.00024109,2]
[364296451,1749060654844,-446.64,0.00024109,2]
[364296453,1749060654853,-446.64,0.00024109,2]
[364296455,1749060654863,-446.64,0.00024109,2]
[364296457,1749060654873,-446.64,0.00024109,2]
[364296459,1749060654883,-446.64,0.00024109,2]
[364296461,1749060654892,-446.64,0.00024109,2]
[364296463,1749060654901,-446.64,0.00024109,2]
[364296465,1749060654911,-446.64,0.00024109,2]
[364296467,1749060654920,-446.64,0.00024109,2]
[364296469,1749060654930,-1498.56595591,0.00024116,2]
[364296471,1749060654940,-802.75,0.0002413,2]
[364296473,1749060654949,-733.96,0.0002413,2]
[364296475,1749060654958,-440.0,0.0002413,2]
[364296477,1749060654968,-1948.38,0.0002413,2]
[364296479,1749060654977,-310.0,0.0002413,2]
[364296481,1749060654987,-475.57,0.0002413,2]
[364296483,1749060654997,-624.88,0.0002413,2]
[364296485,1749060655006,-440.0,0.0002413,2]
[364296486,1749060655016,-359.37,0.0002413,2]
[364296489,1749060655025,-518.34,0.0002413,2]
[364296491,1749060655035,-565.05,0.00024131,2]
[364296493,1749060655043,-262.02,0.00024131,2]
[364296495,1749060655053,-440.0,0.00024131,2]
[364296497,1749060655062,-440.0,0.00024131,2]
[364296499,1749060655071,-440.0,0.00024131,2]
[364296500,1749060655081,-175.85396852,0.00024131,2]
[364296503,1749060655091,-446.64,0.00024131,2]
[364296505,1749060655100,-310.0,0.00024131,2]
[364296507,1749060655110,-318.37,0.00024132,2]
[364296509,1749060655119,-206.0,0.0002415,2]
[364296510,1749060655129,-206.0,0.0002415,2]
[364296512,1749060655138,-151.0,0.0002415,7]
[364296514,1749060655148,-157.42187,0.0002415,7]
[364296516,1749060655158,-151.0,0.0002415,7]
[364296518,1749060655167,-151.0,0.0002415,7]
[364296520,1749060655177,-151.0,0.0002415,7]
[364296522,1749060655189,-199.351973,0.0002415,7]
[364296524,1749060655199,-226.185763,0.00024151,7]
[364296526,1749060655208,-151.0,0.00024151,7]
[364296528,1749060655218,-151.0,0.00024151,7]
[364296530,1749060655227,-151.0,0.00024151,7]
[364296532,1749060655237,-151.0,0.00024151,7]
[364296534,1749060655247,-151.0,0.00024151,7]
[364296536,1749060655256,-151.0,0.00024151,7]
[364296538,1749060655266,-262.180723,0.00024151,2]
[364296540,1749060655276,-262.180723,0.00024151,2]
[364296542,1749060655286,-262.180723,0.00024151,2]
[364296544,1749060655295,-262.180723,0.00024151,2]
[364296546,1749060655304,-262.180723,0.00024151,2]
[364296548,1749060655313,-262.180723,0.00024151,2]
[364296550,1749060655323,-262.180723,0.00024151,2]
[364296552,1749060655333,-262.180723,0.00024151,2]
[364296554,1749060655342,-262.180723,0.00024151,2]
[364296556,1749060655352,-262.180723,0.00024151,2]
[364296558,1749060655362,-262.180723,0.00024151,2]
[364296560,1749060655371,-262.180723,0.00024151,2]
[364296562,1749060655381,-262.180723,0.00024151,2]
[364296564,1749060655391,-262.180721,0.00024151,2]
[364296566,1749060655401,-151.0,0.00024151,7]
[364296568,1749060655411,-151.0,0.00024151,7]
[364296570,1749060655421,-151.0,0.00024151,7]
[364296572,1749060655431,-0.75582169,0.00024151,7]
[364296583,1749060655520,-159.15963631,0.00024151,7]
[364296585,1749060655530,-151.0,0.00024152,7]
[364296587,1749060655540,-190.577231,0.00024152,7]
[364296589,1749060655549,-151.0,0.00024152,7]
[364296591,1749060655559,-151.0,0.00024152,7]
[364296593,1749060655568,-151.0,0.00024152,7]
[364296595,1749060655578,-151.0,0.00024152,7]
[364296597,1749060655587,-151.0,0.00024152,7]
[364296599,1749060655596,-151.0,0.00024152,7]
[364296601,1749060655605,-151.0,0.00024152,7]
[364296603,1749060655615,-151.0,0.00024152,7]
[364296605,1749060655624,-151.0,0.00024152,7]
[364296607,1749060655633,-151.0,0.00024152,7]
[364296609,1749060655643,-274.995664,0.00024152,7]
[364296611,1749060655652,-151.0,0.00024152,7]
[364296613,1749060655661,-151.0,0.00024152,7]
[364296615,1749060655670,-151.0,0.00024152,7]
[364296617,1749060655680,-151.0,0.00024152,7]
[364296619,1749060655689,-151.0,0.00024152,7]
[364296621,1749060655699,-151.0,0.00024152,7]
[364296623,1749060655708,-151.0,0.00024152,7]
[364296625,1749060655717,-151.0,0.00024152,7]
[364296627,1749060655725,-151.0,0.00024152,7]
[364296629,1749060655734,-281.71469,0.00024152,7]
[364296631,1749060655743,-186.815414,0.00024152,7]
[364296632,1749060655752,-186.815414,0.00024152,7]
[364296635,1749060655763,-186.815414,0.00024152,7]
[364296637,1749060655772,-186.815414,0.00024152,7]
[364296639,1749060655785,-186.815414,0.00024152,7]
[364296641,1749060655795,-186.815414,0.00024152,7]
[364296643,1749060655804,-186.815414,0.00024152,7]
[364296645,1749060655813,-186.815414,0.00024152,7]
[364296647,1749060655822,-186.815414,0.00024152,7]
[364296649,1749060655832,-186.815414,0.00024152,7]
[364296651,1749060655842,-186.815414,0.00024152,7]
[364296653,1749060655852,-186.81541,0.00024152,7]
[364296654,1749060655861,-178.557618,0.00024152,7]
[364296655,1749060655870,-267.875194,0.00024152,7]
[364296656,1749060655984,-151.0,0.00024152,7]
[364296657,1749060655994,-151.0,0.00024152,7]
[364296659,1749060656003,-41.47233962,0.00024152,7]
[364296661,1749060656015,-109.52766038,0.00024152,7]
[364296663,1749060656025,-151.0,0.00024152,7]
[364296665,1749060656035,-151.0,0.00024152,7]
[364296667,1749060656044,-151.0,0.00024152,7]
[364296669,1749060656053,-151.0,0.00024152,7]
[364296671,1749060656063,-151.0,0.00024152,7]
[364296673,1749060656073,-224.908506,0.00024152,7]
[364296675,1749060656082,-151.0,0.00024152,7]
[364296677,1749060656091,-151.0,0.00024152,7]
[364296679,1749060656101,-151.0,0.00024152,7]
[364296681,1749060656110,-151.0,0.00024152,7]
[364296683,1749060656120,-151.0,0.00024152,7]
[364296685,1749060656129,-151.0,0.00024152,7]
[364296687,1749060656138,-173.36448,0.00024152,7]
[364296689,1749060656147,-173.36448,0.00024152,7]
[364296691,1749060656158,-173.36448,0.00024152,7]
[364296693,1749060656167,-173.36448,0.00024152,7]
[364296695,1749060656176,-173.36448,0.00024152,7]
[364296697,1749060656189,-173.364482,0.00024152,7]
[364296699,1749060656198,-800.0,0.00024157,2]
[364296701,1749060656208,-200.0,0.00024159,2]
[364296703,1749060656217,-200.0,0.00024159,2]
[364296705,1749060656227,-87668.87785987,0.0002416,15]
[364296707,1749060656244,-1749.38833857,0.0002416,15]
[364296729,1749060656454,-440.0,0.00020842,2]
[364296731,1749060656463,-440.0,0.00020842,2]
[364296733,1749060656472,-440.0,0.00020843,2]
[364296735,1749060656482,-410.0,0.00020843,2]
[364296737,1749060656490,-420.0,0.00020843,2]
[364296739,1749060656500,-440.0,0.00021116,2]
[364296741,1749060656510,-440.0,0.00021116,2]
[364296743,1749060656519,-187.74330759,0.00021117,2]
[364296745,1749060656529,-440.0,0.0002139,2]
[364296747,1749060656539,-821.01211604,0.000214,2]
[364296768,1749060656736,-235.012749,0.00020372,2]
[364296770,1749060656746,-334.71966064,0.00020843,2]
[364296772,1749060656758,-85.28033936,0.00020843,2]
[364296774,1749060656767,-278.49,0.0002139,2]
[364296776,1749060656776,-97.64590944,0.000214,2]
[364296779,1749060656796,-300.0,0.00021389,2]
[364296781,1749060656805,-645.2989708,0.000214,2]
[364297350,1749060803500,273.0,0.00024213,120]
[364297352,1749060880416,165.846184,0.00013699,2]
[364297379,1749061721302,150.999999,0.0002,120]
[364297451,1749061837651,-247.41942134,0.000189,2]
[364297454,1749061837662,-165.174976,0.00019508,2]
[364297456,1749061837672,-359.98382414,0.0001956,2]
[364297458,1749061837682,-229.45591648,0.00019962,2]
[364297460,1749061837691,-160.0,0.00019962,2]
[364297461,1749061837701,-160.0,0.00019962,2]
[364297463,1749061837710,-2536.212198,0.00019962,2]
[364297466,1749061837719,-287.0,0.00019999,2]
[364297468,1749061837728,-1151.0,0.00019999,2]
[364297472,1749061837738,-502.08399402,0.0002,2]
[364297475,1749061837747,-6303.11569336,0.0002,2]
[364297478,1749061837757,-12744.86256404,0.0002,2]
[364297480,1749061837766,-1182.35070897,0.0002,2]
[364297482,1749061837775,-360.03619687,0.0002,2]
[364297484,1749061837785,-30000.0,0.0002,2]
[364297486,1749061837794,-2682.49583296,0.0002,2]
[364297488,1749061837805,-32999.68541415,0.0002,2]
[364297490,1749061837815,-34943.85873859,0.0002,2]
[364297492,1749061837824,-3300.78921362,0.0002,2]
[364297494,1749061837834,-500.67504604,0.0002,2]
[364297496,1749061837843,-842.5625,0.00020063,2]
[364297498,1749061837853,-423.69433488,0.00020063,2]
[364297500,1749061837862,-212.90465545,0.00020063,2]
[364297502,1749061837871,-1400.0,0.00020068,2]
[364297504,1749061837881,-427.84508431,0.00020548,2]
[364297506,1749061837890,-162.74,0.00020831,2]
[364297508,1749061837899,-210.0,0.00020839,2]
[364297510,1749061837909,-700.94,0.0002084,2]
[364297512,1749061837918,-440.0,0.0002084,2]
[364297514,1749061837927,-1270.13,0.0002084,2]
[364297516,1749061837937,-320.0,0.0002084,2]
[364297518,1749061837945,-320.0,0.0002084,2]
[364297520,1749061837955,-320.0,0.0002084,2]
[364297522,1749061837964,-440.0,0.0002084,2]
[364297524,1749061837973,-320.0,0.0002084,2]
[364297526,1749061837982,-440.0,0.0002084,2]
[364297528,1749061837992,-340.0,0.0002084,2]
[364297530,1749061838001,-440.0,0.0002084,2]
[364297532,1749061838010,-440.0,0.0002084,2]
[364297534,1749061838019,-440.0,0.0002084,2]
[364297536,1749061838029,-513.9778304,0.0002084,2]
[364297538,1749061838039,-565.03264998,0.0002084,2]
[364297540,1749061838049,-440.0,0.0002084,2]
[364297542,1749061838059,-406.51784801,0.0002084,2]
[364297544,1749061838068,-440.0,0.0002084,2]
[364297546,1749061838078,-440.0,0.0002084,2]
[364297548,1749061838087,-400.0,0.0002084,2]
[364297550,1749061838096,-440.0,0.0002084,2]
[364297552,1749061838106,-440.0,0.0002084,2]
[364297554,1749061838115,-440.0,0.0002084,2]
[364297555,1749061838124,-440.0,0.0002084,2]
[364297557,1749061838133,-421.79375514,0.0002084,2]
[364297559,1749061838143,-440.0,0.0002084,2]
[364297561,1749061838153,-742.3,0.0002084,2]
[364297563,1749061838163,-242.07340721,0.0002084,2]
[364297565,1749061838174,-440.0,0.0002084,2]